bitfinex-derivatives/quotes_SOLF0:USTF0_20260208
["timestamp","ask_amount","ask_price","bid_price","bid_amount"]
[1770531020355,9.09038613,86.993,86.957,3.64991751]
[1770531020560,9.09038613,86.992,86.957,3.64991751]
[1770531020755,9.09038613,86.991,86.957,3.64991751]
[1770531020954,9.09038613,86.99,86.957,3.64991751]
[1770531021161,9.09038613,86.989,86.957,3.64991751]
[1770531021362,9.09038613,86.988,86.957,3.64991751]
[1770531021558,9.09038613,86.987,86.957,3.64991751]
[1770531021753,9.09038613,86.986,86.957,3.64991751]
[1770531021955,1.10064211,86.995,86.957,3.64991751]
[1770531022155,9.09027049,86.994,86.957,3.64991751]
[1770531022352,9.09027049,86.993,86.957,3.64991751]
[1770531022557,9.09027049,86.992,86.957,3.64991751]
[1770531022764,1.10064211,86.995,86.957,3.64991751]
[1770531022765,9.09027049,86.991,86.957,3.64991751]
[1770531022966,9.09027049,86.99,86.957,3.64991751]
[1770531023166,9.09027049,86.989,86.957,3.64991751]
[1770531023367,9.09027049,86.988,86.957,3.64991751]
[1770531023566,9.09027049,86.987,86.957,3.64991751]
[1770531023769,9.09027049,86.986,86.957,3.64991751]
[1770531024061,1.10064211,86.995,86.957,3.64991751]
[1770531024267,9.09036055,86.994,86.957,3.64991751]
[1770531024566,10.1932541,86.993,86.957,3.64991751]
[1770531024763,9.09036055,86.992,86.96,10.3575]
[1770531025066,9.09036055,86.991,86.96,14.09401825]
[1770531025364,9.09036055,86.99,86.96,14.09401825]
[1770531025556,9.09036055,86.989,86.96,14.09401825]
[1770531025760,6.055e-05,86.988,86.96,14.09401825]
[1770531026069,1.10289355,86.993,86.96,14.09401825]
[1770531028369,1.10289355,86.993,86.961,3.73651825]
[1770531032671,1.14684851,87.006,86.961,3.73651825]
[1770531037771,1.08998288,87.004,86.961,3.73651825]
[1770531037974,9.04936445,87.003,86.961,3.73651825]
[1770531038173,1.08998288,87.004,86.961,3.73651825]
[1770531038174,9.04936445,87.002,86.961,3.73651825]
[1770531038370,9.04936445,87.001,86.961,3.73651825]
[1770531038571,9.04936445,87.0,86.961,3.73651825]
[1770531038765,9.04936445,86.999,86.961,3.73651825]
[1770531038966,9.04936445,86.998,86.961,3.73651825]
[1770531039168,9.04936445,86.997,86.961,3.73651825]
[1770531039476,9.04936445,86.996,86.961,3.73651825]
[1770531039775,1.08998288,87.004,86.961,3.73651825]
[1770531039977,9.04955612,87.003,86.961,3.73651825]
[1770531040178,9.04955612,87.002,86.961,3.73651825]
[1770531040377,9.04955612,87.001,86.961,3.73651825]
[1770531040578,1.08998288,87.004,86.961,3.73651825]
[1770531040579,9.04955612,87.0,86.961,3.73651825]
[1770531040777,9.04955612,86.999,86.961,3.73651825]
[1770531040978,9.04955612,86.998,86.961,3.73651825]
[1770531041178,9.04955612,86.997,86.961,3.73651825]
[1770531041376,9.04955612,86.996,86.961,3.73651825]
[1770531041677,1.08998288,87.004,86.961,3.73651825]
[1770531041874,9.04917602,87.003,86.961,3.73651825]
[1770531042074,9.04917602,87.002,86.961,3.73651825]
[1770531042281,9.04917602,87.001,86.961,3.73651825]
[1770531042583,9.04917602,87.0,86.961,3.73651825]
[1770531042880,9.04917602,86.999,86.961,3.73651825]
[1770531043178,9.04917602,86.998,86.961,3.73651825]
[1770531043378,9.04917602,86.997,86.961,3.73651825]
[1770531043580,9.04917602,86.996,86.961,3.73651825]
[1770531043779,1.08998288,87.004,86.961,3.73651825]
[1770531044079,10.11274031,87.003,86.961,3.73651825]
[1770531044280,9.04928146,87.002,86.961,3.73651825]
[1770531044472,9.04928146,87.001,86.961,3.73651825]
[1770531044670,9.04928146,87.0,86.961,3.73651825]
[1770531044870,1.06345885,86.998,86.946,3.88885538]
[1770531045074,1.06345885,86.996,86.946,3.88885538]
[1770531045272,1.06345885,86.994,86.946,3.88885538]
[1770531045475,9.04928146,86.993,86.946,3.88885538]
[1770531045684,9.04928146,86.992,86.948,3.88885538]
[1770531045885,1.06345885,86.994,86.948,3.88885538]
[1770531045886,9.04928146,86.991,86.948,3.88885538]
[1770531046079,9.04928146,86.99,86.948,3.88885538]
[1770531046279,9.04928146,86.989,86.948,3.88885538]
[1770531046478,1.06345885,86.994,86.948,3.88885538]
[1770531046682,1.109733,86.992,86.951,10.3586]
[1770531046882,1.109733,86.99,86.952,3.88885538]
[1770531047082,9.06742928,86.989,86.952,3.88885538]
[1770531047279,9.06742928,86.988,86.952,3.88885538]
[1770531047481,1.109733,86.99,86.952,3.88885538]
[1770531047677,9.06905149,86.989,86.952,3.88885538]
[1770531047876,9.06905149,86.988,86.952,3.88885538]
[1770531048185,1.109733,86.99,86.952,3.88885538]
[1770531048380,9.0694849,86.989,86.952,3.88885538]
[1770531048580,9.0694849,86.988,86.954,3.88885538]
[1770531048781,1.109733,86.99,86.954,3.88885538]
[1770531048981,9.06910174,86.989,86.954,3.88885538]
[1770531049182,9.06910174,86.988,86.954,3.88885538]
[1770531049384,1.109733,86.99,86.954,3.88885538]
[1770531049683,9.06914544,86.989,86.954,3.88885538]
[1770531049983,9.06914544,86.988,86.954,3.88885538]
[1770531050183,1.109733,86.99,86.954,3.88885538]
[1770531050379,1.1315052,87.007,86.96,3.88885538]
[1770531051788,1.1315052,87.007,86.963,3.88885538]
[1770531061193,1.11741566,87.016,86.965,3.88885538]
[1770531061397,1.11741566,87.025,86.965,3.88885538]
[1770531062298,1.11024291,87.023,86.965,3.88885538]
[1770531062598,9.02742341,87.022,86.968,3.88885538]
[1770531062898,9.02742341,87.021,86.968,3.88885538]
[1770531063095,9.02742341,87.02,86.968,3.88885538]
[1770531063290,9.02742341,87.019,86.968,3.88885538]
[1770531063496,10.3476,87.044,86.968,3.88885538]
[1770531063497,1.11024291,87.017,86.968,3.88885538]
[1770531063702,1.11024291,87.015,86.973,3.88885538]
[1770531063904,9.02742341,87.014,86.973,3.88885538]
[1770531064104,9.02742341,87.013,86.973,3.88885538]
[1770531064305,9.02742341,87.012,86.973,3.88885538]
[1770531064506,9.02742341,87.011,86.973,3.88885538]
[1770531064803,9.02742341,87.01,86.973,3.88885538]
[1770531065010,9.02742341,87.009,86.973,3.88885538]
[1770531065308,9.02742341,87.008,86.973,3.88885538]
[1770531065509,9.02742341,87.007,86.973,3.88885538]
[1770531065807,9.02742341,87.006,86.973,3.88885538]
[1770531066009,1.11024291,87.013,86.973,3.88885538]
[1770531066208,9.02197313,87.012,86.973,3.88885538]
[1770531066407,9.02197313,87.011,86.973,3.88885538]
[1770531066603,9.02197313,87.01,86.973,3.88885538]
[1770531066806,9.02197313,87.009,86.973,3.88885538]
[1770531067006,9.02197313,87.008,86.973,3.88885538]
[1770531067205,9.02197313,87.007,86.973,3.88885538]
[1770531067407,9.02197313,87.006,86.973,3.88885538]
[1770531067709,1.11024291,87.013,86.973,3.88885538]
[1770531068008,9.02122638,87.012,86.973,3.88885538]
[1770531068210,9.02122638,87.011,86.973,3.88885538]
[1770531068507,9.02122638,87.01,86.973,3.88885538]
[1770531068709,9.02122638,87.009,86.973,3.88885538]
[1770531068905,1.11024291,87.013,86.973,3.88885538]
[1770531069108,9.02118201,87.012,86.973,3.88885538]
[1770531069308,9.02118201,87.011,86.973,3.88885538]
[1770531069502,9.02118201,87.01,86.973,3.88885538]
[1770531069707,9.02118201,87.009,86.973,3.88885538]
[1770531069912,1.11024291,87.013,86.973,3.88885538]
[1770531070110,9.02082768,87.012,86.973,3.88885538]
[1770531070310,9.02082768,87.011,86.973,3.88885538]
[1770531070512,9.02082768,87.01,86.973,3.88885538]
[1770531070711,9.02082768,87.009,86.973,3.88885538]
[1770531070912,1.11024291,87.013,86.973,3.88885538]
[1770531071112,9.02069861,87.012,86.973,3.88885538]
[1770531071312,9.02069861,87.011,86.973,3.88885538]
[1770531071614,9.02069861,87.01,86.973,3.88885538]
[1770531071814,9.02069861,87.009,86.973,3.88885538]
[1770531072016,1.11024291,87.013,86.973,3.88885538]
[1770531072216,9.02032142,87.012,86.973,3.88885538]
[1770531072415,9.02032142,87.011,86.973,3.88885538]
[1770531072718,9.02032142,87.01,86.973,3.88885538]
[1770531072912,9.02032142,87.009,86.973,3.88885538]
[1770531073112,1.11024291,87.013,86.973,3.88885538]
[1770531073313,9.02018894,87.012,86.973,3.88885538]
[1770531073513,9.02018894,87.011,86.973,3.88885538]
[1770531073714,9.02018894,87.01,86.973,3.88885538]
[1770531073911,9.02018894,87.009,86.973,3.88885538]
[1770531074117,1.11024291,87.013,86.973,3.88885538]
[1770531074317,9.02013343,87.012,86.973,3.88885538]
[1770531074516,1.11024291,87.013,86.973,3.88885538]
[1770531074517,9.02013343,87.011,86.973,3.88885538]
[1770531074717,1.11024291,87.013,86.973,3.88885538]
[1770531074918,9.01999907,87.012,86.973,3.88885538]
[1770531075119,9.01999907,87.011,86.973,3.88885538]
[1770531075320,1.11024291,87.013,86.973,3.88885538]
[1770531075521,9.02005518,87.012,86.973,3.88885538]
[1770531075817,9.02005518,87.011,86.973,3.88885538]
[1770531076017,1.11024291,87.013,86.973,3.88885538]
[1770531076820,10.3489,87.034,86.973,3.88885538]
[1770531076821,1.00655555,87.011,86.973,3.88885538]
[1770531077021,9.00313322,87.01,86.973,3.88885538]
[1770531077323,1.00655555,87.008,86.961,3.83530357]
[1770531077517,1.00655555,87.006,86.961,3.83530357]
[1770531077717,1.00655555,87.004,86.961,3.83530357]
[1770531078423,1.00655555,87.002,86.961,3.83530357]
[1770531078618,9.99536448,87.001,86.961,3.83530357]
[1770531078923,0.99284647,86.999,86.961,3.83530357]
[1770531079123,0.99284647,86.997,86.961,3.83530357]
[1770531079316,10.55728926,87.015,86.961,3.83530357]
[1770531079317,9.99536448,86.996,86.961,3.83530357]
[1770531079516,9.00251801,86.995,86.961,3.83530357]
[1770531079716,0.99284647,86.996,86.961,3.83530357]
[1770531079918,9.00174027,86.995,86.961,3.83530357]
[1770531080118,0.99284647,86.996,86.961,3.83530357]
[1770531080318,9.00163184,86.995,86.961,3.83530357]
[1770531080622,0.99284647,86.996,86.961,3.83530357]
[1770531080823,9.00176191,86.995,86.961,3.83530357]
[1770531081026,0.99284647,86.996,86.961,3.83530357]
[1770531081226,9.001643,86.995,86.961,3.83530357]
[1770531081524,0.99284647,86.996,86.961,3.83530357]
[1770531081825,9.00241454,86.995,86.961,3.83530357]
[1770531082024,0.99284647,86.996,86.961,3.83530357]
[1770531082225,9.00228922,86.995,86.961,3.83530357]
[1770531082524,0.99284647,86.996,86.961,3.83530357]
[1770531082725,9.0022465,86.995,86.961,3.83530357]
[1770531082921,0.99284647,86.996,86.961,3.83530357]
[1770531083224,9.0022465,86.995,86.961,3.83530357]
[1770531083425,0.99284647,86.996,86.961,3.83530357]
[1770531083625,9.00208115,86.995,86.961,3.83530357]
[1770531083825,0.99284647,86.996,86.961,3.83530357]
[1770531084026,9.00208115,86.995,86.961,3.83530357]
[1770531084228,0.99284647,86.996,86.961,3.83530357]
[1770531084428,9.00191844,86.995,86.961,3.83530357]
[1770531084725,0.99284647,86.996,86.961,3.83530357]
[1770531085025,9.00191844,86.995,86.961,3.83530357]
[1770531085227,0.99284647,86.996,86.961,3.83530357]
[1770531086324,9.00130067,86.995,86.961,3.83530357]
[1770531086528,0.99284647,86.996,86.961,3.83530357]
[1770531086725,9.0012355,86.995,86.961,3.83530357]
[1770531086923,0.99284647,86.996,86.961,3.83530357]
[1770531087125,9.00000035,86.995,86.961,3.83530357]
[1770531087330,0.96422188,86.993,86.939,3.83530357]
[1770531087523,0.96422188,86.991,86.939,3.83530357]
[1770531087820,0.96422188,86.989,86.939,3.83530357]
[1770531088020,0.96422188,86.987,86.939,3.83530357]
[1770531088221,0.96422188,86.985,86.939,3.83530357]
[1770531088430,0.97427187,86.983,86.939,3.83530357]
[1770531088626,0.97427187,86.981,86.939,3.83530357]
[1770531088825,0.97427187,86.979,86.939,3.83530357]
[1770531089032,0.97427187,86.977,86.939,3.83530357]
[1770531089232,0.97427187,86.975,86.939,3.83530357]
[1770531089429,0.97427187,86.973,86.939,3.83530357]
[1770531089629,0.97427187,86.971,86.939,3.83530357]
[1770531089830,8.99916258,86.97,86.939,3.83530357]
[1770531090028,0.97427187,86.971,86.939,3.83530357]
[1770531098340,1.01376496,86.983,86.939,3.83530357]
[1770531099144,1.01376496,86.981,86.939,3.83530357]
[1770531112356,1.04015421,86.991,86.939,3.83530357]
[1770531112548,1.05001111,86.989,86.939,3.83530357]
[1770531113854,1.05001111,86.987,86.939,3.83530357]
[1770531116250,1.14566867,86.985,86.939,3.83530357]
[1770531119352,9.11536343,86.984,86.939,3.83530357]
[1770531119660,1.14566867,86.985,86.939,3.83530357]
[1770531119853,9.11536343,86.984,86.939,3.83530357]
[1770531120156,1.14566867,86.985,86.939,3.83530357]
[1770531120357,9.11766965,86.984,86.939,3.83530357]
[1770531120554,14.05511498,87.014,86.908,303.31960244]
[1770531120555,1.11634656,87.008,86.941,3.94222111]
[1770531120857,1.11634656,87.006,86.941,3.94222111]
[1770531121056,1.11634656,87.025,86.958,3.94222111]
[1770531121250,9.12103708,87.024,86.958,3.94222111]
[1770531121553,9.12103708,87.023,86.958,3.94222111]
[1770531121757,9.12103708,87.022,86.97,3.94222111]
[1770531122057,9.12103708,87.021,86.97,3.94222111]
[1770531122262,9.12103708,87.02,86.97,3.94222111]
[1770531122553,9.12103708,87.019,86.97,3.94222111]
[1770531122752,9.12103708,87.018,86.97,3.94222111]
[1770531122953,9.12103708,87.017,86.97,3.94222111]
[1770531123258,9.12103708,87.016,86.975,3.94222111]
[1770531123455,1.19516537,87.035,86.975,3.94222111]
[1770531123652,10.31321997,87.034,86.975,3.94222111]
[1770531123853,9.1180546,87.033,86.975,3.94222111]
[1770531124157,9.1180546,87.032,86.975,3.94222111]
[1770531124354,9.1180546,87.031,86.975,3.94222111]
[1770531124662,9.1180546,87.03,86.975,3.94222111]
[1770531124958,9.1180546,87.029,86.975,3.94222111]
[1770531125155,9.1180546,87.028,86.975,3.94222111]
[1770531125352,9.1180546,87.027,86.978,3.94222111]
[1770531125558,1.07084476,87.044,86.978,3.94222111]
[1770531125758,1.06988566,87.042,86.978,3.94222111]
[1770531125959,1.06988566,87.04,86.981,3.71477498]
[1770531126154,1.06988566,87.038,86.981,3.71477498]
[1770531126354,1.08012105,87.036,86.981,3.71477498]
[1770531126652,1.08012105,87.034,86.981,3.71477498]
[1770531127068,1.08012105,87.032,86.952,3.71477498]
[1770531127369,9.10594068,87.033,86.952,3.71477498]
[1770531127370,1.08012105,87.03,86.952,3.71477498]
[1770531127563,1.08012105,87.028,86.952,3.71477498]
[1770531127759,1.08012105,87.026,86.952,3.71477498]
[1770531127963,1.08012105,87.024,86.952,3.71477498]
[1770531128159,1.08012105,87.022,86.952,3.71477498]
[1770531128360,1.08619914,87.02,86.952,3.71477498]
[1770531128557,1.08619914,87.018,86.952,3.71477498]
[1770531128750,1.08619914,87.016,86.956,3.71477498]
[1770531128957,1.08619914,87.014,86.956,3.71477498]
[1770531129156,10.19213982,87.013,86.956,3.71477498]
[1770531129360,9.10594068,87.012,86.956,3.71477498]
[1770531129564,9.10594068,87.011,86.956,3.71477498]
[1770531129759,1.08619914,87.013,86.958,3.71477498]
[1770531129961,9.10440457,87.012,86.958,3.71477498]
[1770531130162,1.08619914,87.013,86.958,3.71477498]
[1770531130658,1.08619914,87.013,86.961,3.71477498]
[1770531130962,9.10406744,87.012,86.961,3.71477498]
[1770531131155,1.08619914,87.013,86.961,3.71477498]
[1770531131361,9.10290074,87.012,86.961,3.71477498]
[1770531131661,1.08619914,87.013,86.961,3.71477498]
[1770531131862,9.10033303,87.012,86.961,3.71477498]
[1770531132167,1.08619914,87.013,86.961,3.71477498]
[1770531132369,10.13045396,87.012,86.961,3.71477498]
[1770531132557,1.03031438,87.012,86.961,3.71477498]
[1770531132762,1.03031438,87.012,86.964,3.71477498]
[1770531139471,1.03031438,87.012,86.966,3.5788583]
[1770531140774,1.03031438,87.012,86.969,3.5788583]
[1770531142274,1.07765041,87.041,86.969,3.5788583]
[1770531142474,1.11212187,87.039,86.969,3.5788583]
[1770531142675,1.11212187,87.037,86.969,3.5788583]
[1770531142976,1.11212187,87.035,86.969,3.5788583]
[1770531143169,1.11212187,87.033,86.969,3.5788583]
[1770531143369,1.11212187,87.031,86.969,3.5788583]
[1770531143571,1.11212187,87.029,86.969,3.5788583]
[1770531143872,1.11212187,87.027,86.969,3.5788583]
[1770531144075,1.11212187,87.025,86.969,3.5788583]
[1770531144276,1.11212187,87.023,86.969,3.5788583]
[1770531149079,1.11212187,87.023,86.971,3.5788583]
[1770531149277,9.0919969,87.022,86.971,3.5788583]
[1770531149478,1.11212187,87.023,86.971,3.5788583]
[1770531149777,9.09209827,87.022,86.971,3.5788583]
[1770531149977,1.1114541,87.021,86.971,3.5788583]
[1770531150774,1.1114541,87.021,86.973,3.5788583]
[1770531152080,1.1115509,87.019,86.973,3.5788583]
[1770531152280,1.1115509,87.017,86.973,3.5788583]
[1770531152581,1.11177332,87.015,86.973,3.5788583]
[1770531152880,1.11177332,87.013,86.973,3.5788583]
[1770531153080,9.0929532,87.012,86.973,3.5788583]
[1770531153280,9.0929532,87.011,86.973,3.5788583]
[1770531153481,9.0929532,87.01,86.973,3.5788583]
[1770531153680,1.11177332,87.013,86.973,3.5788583]
[1770531154383,9.0966028,87.012,86.973,3.5788583]
[1770531154679,9.0966028,87.011,86.973,3.5788583]
[1770531154874,9.0966028,87.01,86.973,3.5788583]
[1770531155080,1.11177332,87.013,86.973,3.5788583]
[1770531155280,9.09864821,87.012,86.973,3.5788583]
[1770531155579,9.09864821,87.011,86.973,3.5788583]
[1770531155775,9.09864821,87.01,86.973,3.5788583]
[1770531155983,1.11177332,87.013,86.973,3.5788583]
[1770531156178,9.10005924,87.012,86.973,3.5788583]
[1770531156378,9.10005924,87.011,86.973,3.5788583]
[1770531156681,9.10005924,87.01,86.973,3.5788583]
[1770531156981,9.10005924,87.009,86.973,3.5788583]
[1770531157274,9.1050179,87.008,86.973,3.5788583]
[1770531157582,1.11177332,87.013,86.973,3.5788583]
[1770531157782,9.10542057,87.012,86.973,3.5788583]
[1770531158081,9.10542057,87.011,86.973,3.5788583]
[1770531158282,9.10542057,87.01,86.973,3.5788583]
[1770531158484,9.10542057,87.009,86.973,3.5788583]
[1770531158680,9.10542057,87.008,86.973,3.5788583]
[1770531158885,9.10542057,87.007,86.973,3.5788583]
[1770531159182,1.11177332,87.013,86.973,3.5788583]
[1770531159383,9.10831696,87.012,86.973,3.5788583]
[1770531159579,9.10831696,87.011,86.973,3.5788583]
[1770531159778,9.10831696,87.01,86.973,3.5788583]
[1770531159974,9.10831696,87.009,86.973,3.5788583]
[1770531160177,9.10831696,87.008,86.973,3.5788583]
[1770531160378,9.10831696,87.007,86.973,3.5788583]
[1770531160677,9.10831696,87.006,86.973,3.5788583]
[1770531160875,1.11177332,87.013,86.973,3.5788583]
[1770531161083,9.11096921,87.012,86.973,3.5788583]
[1770531161383,9.11096921,87.011,86.973,3.5788583]
[1770531161586,9.11096921,87.01,86.973,3.5788583]
[1770531161789,1.11177332,87.013,86.973,3.5788583]
[1770531161790,9.11096921,87.009,86.973,3.5788583]
[1770531161991,9.11096921,87.008,86.973,3.5788583]
[1770531162186,9.11096921,87.007,86.973,3.5788583]
[1770531162385,9.11096921,87.006,86.973,3.5788583]
[1770531162591,1.11177332,87.013,86.973,3.5788583]
[1770531162592,9.11096921,87.005,86.973,3.5788583]
[1770531162793,9.11096921,87.004,86.973,3.5788583]
[1770531162993,1.11177332,87.013,86.973,3.5788583]
[1770531163197,1.11459421,87.011,86.973,3.5788583]
[1770531163392,9.11453167,87.01,86.973,3.5788583]
[1770531163700,9.11453167,87.009,86.973,3.5788583]
[1770531163891,9.11453167,87.008,86.975,3.59642832]
[1770531164086,1.11459421,87.011,86.975,3.59642832]
[1770531164288,9.11885487,87.01,86.975,3.59642832]
[1770531164493,9.11885487,87.009,86.975,3.59642832]
[1770531164694,9.11885487,87.008,86.977,3.59642832]
[1770531164996,9.11885487,87.007,86.977,3.59642832]
[1770531165198,9.11885487,87.006,86.977,3.59642832]
[1770531165398,1.12662215,87.021,86.977,3.59642832]
[1770531165590,1.16680536,87.019,86.977,3.59642832]
[1770531165794,1.16680536,87.017,86.977,3.59642832]
[1770531165999,9.12328838,87.016,86.977,3.59642832]
[1770531166202,9.12328838,87.015,86.977,3.59642832]
[1770531166403,9.12328838,87.014,86.977,3.59642832]
[1770531166591,9.12328838,87.013,86.977,3.59642832]
[1770531166795,9.12328838,87.012,86.977,3.59642832]
[1770531167099,9.12328838,87.011,86.977,3.59642832]
[1770531167299,9.12328838,87.01,86.977,3.59642832]
[1770531167500,9.12328838,87.009,86.977,3.59642832]
[1770531167694,9.12328838,87.008,86.977,3.59642832]
[1770531167889,9.12328838,87.007,86.977,3.59642832]
[1770531168093,1.16680536,87.017,86.977,3.59642832]
[1770531168094,9.12328838,87.006,86.977,3.59642832]
[1770531168305,1.16680536,87.017,86.977,3.59642832]
[1770531168498,10.28404327,87.016,86.977,3.59642832]
[1770531168700,9.13896133,87.015,86.977,3.59642832]
[1770531169001,9.13896133,87.014,86.977,3.59642832]
[1770531169198,9.13896133,87.013,86.977,3.59642832]
[1770531169399,9.13896133,87.012,86.977,3.59642832]
[1770531169599,9.13896133,87.011,86.977,3.59642832]
[1770531169801,9.13896133,87.01,86.977,3.59642832]
[1770531170000,1.14508194,87.016,86.977,3.59642832]
[1770531170001,9.13896133,87.009,86.977,3.59642832]
[1770531170202,9.13896133,87.008,86.977,3.59642832]
[1770531170398,9.13896133,87.007,86.977,3.59642832]
[1770531170602,9.13896133,87.006,86.977,3.59642832]
[1770531170904,1.14508194,87.016,86.977,3.59642832]
[1770531171100,9.14172857,87.015,86.977,3.59642832]
[1770531171307,9.14172857,87.014,86.977,3.59642832]
[1770531171604,9.14172857,87.013,86.977,3.59642832]
[1770531171806,9.14172857,87.012,86.978,13.95182832]
[1770531172004,9.14172857,87.011,86.979,3.59642832]
[1770531172204,9.14172857,87.01,86.979,3.59642832]
[1770531172504,9.14172857,87.009,86.979,3.59642832]
[1770531172696,9.14172857,87.008,86.979,3.59642832]
[1770531172897,9.14172857,87.007,86.979,3.59642832]
[1770531173094,9.14172857,87.006,86.979,3.59642832]
[1770531173299,2.857e-05,87.005,86.979,3.59642832]
[1770531173499,1.15016235,87.013,86.979,3.59642832]
[1770531179911,1.1469075,87.025,86.979,3.59642832]
[1770531180915,1.1469075,87.034,86.987,3.59642832]
[1770531181708,1.17567792,87.031,86.987,3.59642832]
[1770531181908,1.17567792,87.026,86.987,3.59642832]
[1770531185213,9.0998723,87.025,86.987,3.59642832]
[1770531185514,9.0998723,87.024,86.987,3.59642832]
[1770531185714,9.0998723,87.023,86.987,3.59642832]
[1770531185915,9.0998723,87.022,86.987,3.59642832]
[1770531186115,1.17567792,87.026,86.987,3.59642832]
[1770531186116,9.0998723,87.021,86.987,3.59642832]
[1770531186316,9.0998723,87.02,86.987,3.59642832]
[1770531186611,9.0998723,87.019,86.987,3.59642832]
[1770531186816,9.0998723,87.018,86.987,3.59642832]
[1770531187012,1.17567792,87.026,86.987,3.59642832]
[1770531187214,1.122263,87.024,86.987,3.59642832]
[1770531187512,9.09898081,87.023,86.987,3.59642832]
[1770531187712,9.09898081,87.022,86.987,3.59642832]
[1770531187912,10.24528856,87.021,86.987,3.59642832]
[1770531188109,9.09898081,87.02,86.987,3.59642832]
[1770531188309,9.09898081,87.019,86.987,3.59642832]
[1770531188614,9.09898081,87.018,86.987,3.59642832]
[1770531188808,1.14630775,87.021,86.987,3.59642832]
[1770531189006,9.09748095,87.02,86.987,3.59642832]
[1770531189211,9.09748095,87.019,86.987,3.59642832]
[1770531189406,9.09748095,87.018,86.987,3.59642832]
[1770531189611,1.14630775,87.021,86.987,3.59642832]
[1770531189810,9.09767137,87.02,86.987,3.59642832]
[1770531190006,9.09767137,87.019,86.987,3.59642832]
[1770531190212,9.09767137,87.018,86.987,3.59642832]
[1770531190517,1.14630775,87.021,86.987,3.59642832]
[1770531190819,9.10003408,87.02,86.987,3.59642832]
[1770531191118,9.10003408,87.019,86.987,3.59642832]
[1770531191418,1.14630775,87.021,86.987,3.59642832]
[1770531191621,9.09946043,87.02,86.987,3.59642832]
[1770531191816,6.043e-05,87.019,86.991,3.64127478]
[1770531192113,1.13294981,87.045,86.991,3.64127478]
[1770531192313,1.13294981,87.045,86.992,3.64127478]
[1770531193321,1.23414188,87.04,86.981,3.61470164]
[1770531193511,1.23414188,87.027,86.981,3.61470164]
[1770531193914,1.23414188,87.027,86.992,3.61470164]
[1770531195625,4.188e-05,87.027,86.992,3.61470164]
[1770531195921,4.188e-05,87.027,86.993,10.3536]
[1770531196122,4.188e-05,87.027,86.993,14.33063021]
[1770531196620,4.188e-05,87.027,86.882,50.10455297]
[1770531196621,10.69217487,87.052,86.997,3.97703021]
[1770531196824,10.69217487,87.053,86.997,3.97703021]
[1770531198226,10.69217487,87.054,86.997,3.97703021]
[1770531198721,10.69217487,87.053,86.997,3.97703021]
[1770531199126,10.69217487,87.054,86.997,3.97703021]
[1770531201126,14.05511498,87.066,86.997,3.97703021]
[1770531201127,10.69217487,87.055,86.997,3.97703021]
[1770531203924,9.02835338,87.054,86.997,3.97703021]
[1770531204119,9.02835338,87.053,86.997,3.97703021]
[1770531204325,9.02835338,87.052,86.997,3.97703021]
[1770531204628,9.02835338,87.051,86.997,3.97703021]
[1770531204825,9.02835338,87.05,86.997,3.97703021]
[1770531205131,9.02835338,87.049,86.997,3.97703021]
[1770531205435,9.02835338,87.048,86.997,3.97703021]
[1770531205632,9.02835338,87.047,86.997,3.97703021]
[1770531205833,9.02835338,87.046,86.999,3.98546629]
[1770531206027,9.02835338,87.045,86.999,3.98546629]
[1770531206224,9.02835338,87.044,86.999,3.98546629]
[1770531206533,9.02835338,87.043,86.999,3.98546629]
[1770531206731,9.02835338,87.042,86.999,3.98546629]
[1770531207036,9.02835338,87.041,86.999,3.98546629]
[1770531207335,9.02835338,87.04,86.999,3.98546629]
[1770531207632,9.02835338,87.039,86.999,3.98546629]
[1770531207832,9.02835338,87.038,86.999,3.98546629]
[1770531208030,9.02835338,87.037,86.999,3.98546629]
[1770531208233,9.02835338,87.036,86.999,3.98546629]
[1770531208529,9.02835338,87.035,86.999,3.98546629]
[1770531208727,9.02835338,87.034,86.999,3.98546629]
[1770531208927,9.02835338,87.033,86.999,3.98546629]
[1770531209124,9.02835338,87.032,86.999,3.98546629]
[1770531209335,9.02835338,87.031,86.988,3.98470777]
[1770531209534,9.02835338,87.03,86.988,3.98470777]
[1770531209731,9.02835338,87.029,86.988,3.98470777]
[1770531209935,9.02835338,87.028,86.988,3.98470777]
[1770531210235,9.02835338,87.027,86.988,3.98470777]
[1770531210433,9.02835338,87.026,86.988,3.98470777]
[1770531210733,9.02835338,87.025,86.988,3.98470777]
[1770531210933,9.02835338,87.024,86.988,3.98470777]
[1770531211133,9.02835338,87.023,86.988,3.98470777]
[1770531211335,9.02835338,87.022,86.988,3.98470777]
[1770531211533,9.02835338,87.021,86.988,3.98470777]
[1770531211734,9.02835338,87.02,86.988,3.98470777]
[1770531211933,10.69217487,87.04,86.988,3.98470777]
[1770531212135,9.0268538,87.039,86.988,3.98470777]
[1770531212335,9.0268538,87.038,86.988,3.98470777]
[1770531212638,10.69217487,87.036,86.988,3.98470777]
[1770531212937,9.0268538,87.035,86.988,3.98470777]
[1770531213236,9.0268538,87.034,86.988,3.98470777]
[1770531213437,9.0268538,87.033,86.988,3.98470777]
[1770531213734,9.0268538,87.032,86.988,3.98470777]
[1770531213929,9.0268538,87.031,86.988,3.98470777]
[1770531214131,9.0268538,87.03,86.988,3.98470777]
[1770531214327,9.0268538,87.029,86.988,3.98470777]
[1770531214526,9.0268538,87.028,86.988,3.98470777]